[Event "26th Abu Dhabi Master 2019"]
[Site "Abu Dhabi"]
[Date "2019.08.04"]
[Round "4.12"]
[White "Ter-Sahakyan, Samvel"]
[Black "Sengupta, Deep"]
[Result "1/2-1/2"]
[ECO "B38"]
[WhiteElo "2625"]
[BlackElo "2558"]
[Annotator "ChessBase"]
[PlyCount "72"]
[EventDate "2019.08.02"]
[EventType "swiss"]
[EventCountry "UAE"]
[SourceTitle "playchess.com"]
[Source "ChessBase"]
[SourceQuality "1"]
[TimeControl "5400+30"]

1. e4 {[%emt 0:00:00]} c5 {[%emt 0:00:21]} 2. Nf3 {[%emt 0:00:00]} Nc6 {[%emt 0:00:05]} 3. d4 {[%emt 0:02:16]} cxd4 {[%emt 0:00:06]} 4. Nxd4 {[%emt 0:00:02]} g6 {[%emt 0:00:07]} 5. c4 {[%emt 0:03:45]} Bg7 {[%emt 0:00:06]} 6. Be3 {[%emt 0:00:29]} Nf6 {[%emt 0:00:07]} 7. Nc3 {[%emt 0:00:12]} O-O {[%emt 0:00:07]} 8. Be2 {[%emt 0:00:35]} d6 {[%emt 0:00:18]} 9. O-O {[%emt 0:00:14]} Nxd4 {[%emt 0:02:35]} 10. Bxd4 {[%emt 0:00:07]} Bd7 {[%emt 0:00:04]} 11. h3 {[%emt 0:10:17]} Bc6 {[%emt 0:01:33]} 12. Qc2 {[%emt 0:00:14]} Qc7 {[%emt 0:06:08]} 13. Rac1 {[%emt 0:11:36]} Bh6 {[%emt 0:23:48]} 14. f4 {[%emt 0:16:44]} e5 {[%emt 0:02:09]} 15. Be3 {[%emt 0:00:05]} Rae8 {[%emt 0:03:49]} 16. Bd2 {[%emt 0:17:53]} Qb6+ 17. Kh1 {[%emt 0:00:30]} exf4 18. Bxf4 {[%emt 0:00:30]} Bxf4 19. Rxf4 {[%emt 0:00:30]} Qd4 20. Bf3 Re6 {[%emt 0:45:40]} 21. Rd1 {[%emt 0:25:43]} Qe3 {[%emt 0:09:13]} 22. Qd2 {[%emt 0:01:22]} Qxd2 {[%emt 0:00:03]} 23. Rxd2 {[%emt 0:00:04]} Kg7 {[%emt 0:00:05]} 24. Bg4 {[%emt 0:04:29]} Nxg4 {[%emt 0:00:58]} 25. Rxg4 {[%emt 0:00:04]} Rfe8 {[%emt 0:00:42]} 26. b3 {[%emt 0:00:26]} Rf6 {[%emt 0:00:57]} 27. Kh2 {[%emt 0:00:31]} Re5 {[%emt 0:00:55]} 28. Kg3 {[%emt 0:02:17]} Rfe6 {[%emt 0:03:30]} 29. Kf2 {[%emt 0:01:56]} h5 {[%emt 0:00:25]} 30. Rf4 {[%emt 0:00:07]} a6 {[%emt 0:00:32]} 31. Rd4 {[%emt 0:00:32]} Kf8 {[%emt 0:00:23]} 32. h4 {[%emt 0:00:39]} Ke8 {[%emt 0:00:33]} 33. b4 {[%emt 0:00:18]} f6 {[%emt 0:00:33]} 34. Ke3 {[%emt 0:00:53]} b5 {[%emt 0:00:19]} 35. cxb5 axb5 {[%emt 0:00:18]} 36. Kd3 {[%emt 0:01:49]} Kf7 {[%emt 0:00:57]} 1/2-1/2

[Event "26th Abu Dhabi Master 2019"]
[Site "Abu Dhabi"]
[Date "2019.08.04"]
[Round "4.13"]
[White "Ni, Shiqun"]
[Black "Akopian, Vladimir"]
[Result "0-1"]
[ECO "B08"]
[WhiteElo "2407"]
[BlackElo "2650"]
[Annotator "ChessBase"]
[PlyCount "118"]
[EventDate "2019.08.02"]
[EventType "swiss"]
[EventCountry "UAE"]
[SourceTitle "playchess.com"]
[Source "ChessBase"]
[SourceQuality "1"]
[TimeControl "5400+30"]

1. e4 {[%emt 0:00:00]} d6 {[%emt 0:01:34]} 2. d4 {[%emt 0:00:00]} g6 {[%emt 0:00:14]} 3. Nc3 {[%emt 0:00:11]} Bg7 {[%emt 0:00:14]} 4. Nf3 {[%emt 0:00:19]} Nf6 {[%emt 0:00:41]} 5. Be2 {[%emt 0:00:10]} O-O {[%emt 0:00:10]} 6. O-O {[%emt 0:00:06]} c6 {[%emt 0:00:12]} 7. a4 {[%emt 0:00:41]} a5 {[%emt 0:00:16]} 8. h3 {[%emt 0:01:59]} Na6 {[%emt 0:00:24]} 9. Re1 {[%emt 0:02:43]} Nb4 {[%emt 0:01:16]} 10. Bc4 {[%emt 0:00:47]} d5 {[%emt 0:05:10]} 11. Bb3 {[%emt 0:04:45]} Nxe4 {[%emt 0:10:41]} 12. Nxe4 {[%emt 0:00:06]} dxe4 {[%emt 0:00:04]} 13. Rxe4 {[%emt 0:00:42]} Bf5 {[%emt 0:02:29]} 14. Re2 {[%emt 0:01:11]} Qd6 {[%emt 0:04:14]} 15. Bg5 {[%emt 0:01:51]} Bf6 {[%emt 0:01:41]} 16. Bh6 {[%emt 0:07:25]} Rfd8 {[%emt 0:16:04]} 17. Ng5 {[%emt 0:10:15]} Nd5 {[%emt 0:01:39]} 18. Rd2 {[%emt 0:06:43]} Bg7 {[%emt 0:04:38]} 19. Bxg7 {[%emt 0:00:54]} Kxg7 {[%emt 0:00:06]} 20. c4 {[%emt 0:04:02]} f6 {[%emt 0:05:25]} 21. cxd5 {[%emt 0:06:08]} fxg5 {[%emt 0:00:06]} 22. dxc6 {[%emt 0:00:03]} bxc6 {[%emt 0:00:06]} 23. Qe2 {[%emt 0:05:27]} Qf6 {[%emt 0:05:53]} 24. Rc1 {[%emt 0:03:52]} Rab8 {[%emt 0:05:48]} 25. Bc4 {[%emt 0:15:37]} h5 {[%emt 0:00:30]} 26. Re1 {[%emt 0:00:30]} Rb7 {[%emt 0:00:30]} 27. Qe5 g4 28. hxg4 {[%emt 0:01:00]} hxg4 {[%emt 0:06:29]} 29. Qxa5 {[%emt 0:01:34]} Rxd4 {[%emt 0:00:18]} 30. Rxd4 {[%emt 0:02:42]} Qxd4 {[%emt 0:00:05]} 31. Qe5+ {[%emt 0:00:49]} Qxe5 {[%emt 0:00:06]} 32. Rxe5 {[%emt 0:00:02]} Rxb2 {[%emt 0:01:20]} 33. Rxe7+ {[%emt 0:00:05]} Kf6 {[%emt 0:00:09]} 34. Rc7 {[%emt 0:04:22]} Be4 {[%emt 0:00:15]} 35. f3 {[%emt 0:02:16]} gxf3 {[%emt 0:02:21]} 36. gxf3 {[%emt 0:00:02]} Bd5 {[%emt 0:00:26]} 37. Bxd5 {[%emt 0:01:18]} cxd5 {[%emt 0:00:06]} 38. Rc6+ {[%emt 0:05:19]} Kf5 {[%emt 0:00:45]} 39. Rd6 {[%emt 0:00:08]} Ke5 {[%emt 0:03:25]} 40. Rxg6 {[%emt 0:00:02]} Kf4 {[%emt 0:01:20]} 41. Rg2 {[%emt 0:05:46]} Rb3 {[%emt 0:01:09]} 42. Rd2 {[%emt 0:01:54]} Kg3 {[%emt 0:01:54]} 43. Rd1 {[%emt 0:00:51]} d4 {[%emt 0:01:50]} 44. f4 {[%emt 0:02:34]} d3 {[%emt 0:00:40]} 45. f5 {[%emt 0:00:41]} Kf3 {[%emt 0:02:42]} 46. Rf1+ {[%emt 0:02:56]} Ke2 {[%emt 0:01:03]} 47. Rf2+ {[%emt 0:00:06]} Ke3 {[%emt 0:00:10]} 48. Kg2 {[%emt 0:00:26]} d2 {[%emt 0:02:06]} 49. Rf3+ {[%emt 0:02:14]} Ke2 {[%emt 0:07:51]} 50. Rf2+ {[%emt 0:00:51]} Kd3 {[%emt 0:00:12]} 51. Rf1 {[%emt 0:00:05]} Kc2 {[%emt 0:00:18]} 52. f6 {[%emt 0:00:52]} d1=Q {[%emt 0:00:34]} 53. Rxd1 {[%emt 0:00:02]} Kxd1 {[%emt 0:00:06]} 54. a5 {[%emt 0:00:53]} Ke2 {[%emt 0:04:09]} 55. a6 {[%emt 0:00:15]} Rb8 {[%emt 0:00:09]} 56. Kg3 {[%emt 0:00:45]} Ke3 {[%emt 0:00:05]} 57. Kg4 {[%emt 0:00:07]} Ke4 {[%emt 0:00:05]} 58. Kg5 {[%emt 0:00:07]} Ke5 {[%emt 0:00:10]} 59. Kg6 {[%emt 0:00:51]} Rb6 {[%emt 0:00:45]} 0-1

[Event "26th Abu Dhabi Master 2019"]
[Site "Abu Dhabi"]
[Date "2019.08.04"]
[Round "4.14"]
[White "Soumya, Swaminathan"]
[Black "Esipenko, Andrey"]
[Result "0-1"]
[ECO "B12"]
[WhiteElo "2402"]
[BlackElo "2621"]
[Annotator "ChessBase"]
[PlyCount "79"]
[EventDate "2019.08.02"]
[EventType "swiss"]
[EventCountry "UAE"]
[SourceTitle "playchess.com"]
[Source "ChessBase"]
[SourceQuality "1"]
[TimeControl "5400+30"]

1. e4 {[%emt 0:00:00]} c6 {[%emt 0:00:00]} 2. d4 {[%emt 0:00:13]} d5 {[%emt 0:00:12]} 3. e5 {[%emt 0:00:04]} Bf5 {[%emt 0:00:30]} 4. Nd2 {[%emt 0:00:06]} e6 {[%emt 0:00:18]} 5. Nb3 {[%emt 0:00:25]} Nd7 {[%emt 0:00:19]} 6. Nf3 {[%emt 0:00:08]} Qc7 {[%emt 0:00:19]} 7. Be2 {[%emt 0:01:25]} c5 {[%emt 0:00:16]} 8. c3 {[%emt 0:11:27]} h6 {[%emt 0:00:22]} 9. dxc5 {[%emt 0:05:19]} Bxc5 {[%emt 0:00:11]} 10. Nxc5 {[%emt 0:00:03]} Nxc5 {[%emt 0:00:17]} 11. Nd4 {[%emt 0:04:24]} Ne7 {[%emt 0:17:29]} 12. Nxf5 {[%emt 0:23:57]} Nxf5 {[%emt 0:00:18]} 13. g4 {[%emt 0:01:20]} Nh4 {[%emt 0:17:39]} 14. Qd4 {[%emt 0:05:21]} h5 {[%emt 0:03:42]} 15. gxh5 {[%emt 0:13:41]} Nf5 {[%emt 0:00:26]} 16. Qb4 {[%emt 0:00:31]} a6 {[%emt 0:03:27]} 17. Kf1 {[%emt 0:11:26]} O-O-O {[%emt 0:22:01]} 18. Bg5 {[%emt 0:00:30]} Ne4 19. Bxd8 Rxd8 20. Bd3 {[%emt 0:11:31]} Qxe5 {[%emt 0:01:30]} 21. Re1 {[%emt 0:00:36]} Nfd6 {[%emt 0:00:49]} 22. Re2 {[%emt 0:05:52]} Qxh5 {[%emt 0:00:58]} 23. Bxe4 {[%emt 0:00:40]} Nxe4 {[%emt 0:00:14]} 24. Qd4 {[%emt 0:00:40]} Qh3+ {[%emt 0:00:21]} 25. Ke1 {[%emt 0:00:06]} Qg2 {[%emt 0:00:23]} 26. Rf1 {[%emt 0:00:03]} Ng5 {[%emt 0:00:16]} 27. Qc5+ {[%emt 0:02:15]} Kb8 {[%emt 0:00:06]} 28. f4 {[%emt 0:00:20]} Nf3+ {[%emt 0:00:17]} 29. Rxf3 {[%emt 0:00:02]} Qxf3 {[%emt 0:00:06]} 30. Qe7 {[%emt 0:00:20]} Rh8 {[%emt 0:08:42]} 31. Qxf7 {[%emt 0:00:16]} Qh1+ {[%emt 0:00:07]} 32. Kd2 {[%emt 0:00:05]} Qb1 {[%emt 0:00:06]} 33. Qxe6 {[%emt 0:01:35]} Qxb2+ {[%emt 0:00:05]} 34. Kd3 {[%emt 0:00:38]} Qb1+ {[%emt 0:00:46]} 35. Kd4 {[%emt 0:01:36]} Qb5 {[%emt 0:01:25]} 36. Qe5+ {[%emt 0:00:26]} Ka8 {[%emt 0:00:20]} 37. Rg2 {[%emt 0:00:34]} Rh3 {[%emt 0:01:16]} 38. Qe2 {[%emt 0:00:30]} Qb6+ {[%emt 0:00:47]} 39. Kxd5 {[%emt 0:00:14]} Re3 {[%emt 0:01:33]} 40. Qb2 {[%emt 0:00:50]} 0-1

[Event "26th Abu Dhabi Master 2019"]
[Site "Abu Dhabi"]
[Date "2019.08.04"]
[Round "4.15"]
[White "Socko, Bartosz"]
[Black "Muradli, Mahammad"]
[Result "1-0"]
[ECO "B90"]
[WhiteElo "2625"]
[BlackElo "2454"]
[Annotator "ChessBase"]
[PlyCount "115"]
[EventDate "2019.08.02"]
[EventType "swiss"]
[EventCountry "UAE"]
[SourceTitle "playchess.com"]
[Source "ChessBase"]
[SourceQuality "1"]
[TimeControl "5400+30"]

1. e4 {[%emt 0:00:00]} c5 {[%emt 0:00:54]} 2. Nf3 {[%emt 0:00:05]} d6 {[%emt 0:00:03]} 3. d4 {[%emt 0:00:09]} cxd4 {[%emt 0:00:08]} 4. Nxd4 {[%emt 0:00:07]} Nf6 {[%emt 0:00:09]} 5. Nc3 {[%emt 0:00:05]} a6 {[%emt 0:00:06]} 6. Be3 {[%emt 0:00:05]} e5 {[%emt 0:00:10]} 7. Nf3 {[%emt 0:00:08]} Qc7 {[%emt 0:00:19]} 8. a4 {[%emt 0:00:13]} Be7 {[%emt 0:00:07]} 9. Be2 {[%emt 0:00:18]} b6 {[%emt 0:08:16]} 10. Nd2 {[%emt 0:01:22]} Be6 {[%emt 0:07:37]} 11. O-O {[%emt 0:01:47]} O-O {[%emt 0:01:15]} 12. f4 {[%emt 0:01:30]} d5 {[%emt 0:19:25]} 13. fxe5 {[%emt 0:11:13]} Qxe5 {[%emt 0:02:02]} 14. Nf3 {[%emt 0:04:10]} Qc7 {[%emt 0:00:17]} 15. Nxd5 {[%emt 0:15:15]} Bxd5 {[%emt 0:01:04]} 16. exd5 {[%emt 0:00:26]} Bc5 {[%emt 0:00:08]} 17. Bxc5 {[%emt 0:02:15]} Qxc5+ {[%emt 0:00:57]} 18. Qd4 {[%emt 0:00:42]} Nxd5 {[%emt 0:07:23]} 19. Qxc5 {[%emt 0:00:30]} bxc5 {[%emt 0:00:02]} 20. Rfd1 {[%emt 0:03:44]} Ne3 {[%emt 0:03:19]} 21. Rd6 {[%emt 0:00:46]} Ra7 {[%emt 0:08:20]} 22. Ra3 {[%emt 0:03:46]} Nxc2 {[%emt 0:02:17]} 23. Rc3 {[%emt 0:00:06]} Nb4 {[%emt 0:00:06]} 24. Rxc5 {[%emt 0:01:33]} Nd7 {[%emt 0:00:15]} 25. Rc1 {[%emt 0:06:14]} a5 {[%emt 0:00:38]} 26. Bc4 {[%emt 0:02:23]} Nf6 {[%emt 0:22:23]} 27. Re1 {[%emt 0:00:30]} Ne8 28. Rb6 {[%emt 0:18:53]} Rd7 {[%emt 0:01:00]} 29. Bb5 {[%emt 0:00:30]} Rd8 {[%emt 0:01:47]} 30. Bxe8 {[%emt 0:06:35]} Rfxe8 {[%emt 0:00:05]} 31. Rxe8+ {[%emt 0:00:15]} Rxe8 {[%emt 0:00:01]} 32. Rb5 {[%emt 0:00:09]} Ra8 {[%emt 0:02:34]} 33. Ne5 {[%emt 0:00:37]} h6 {[%emt 0:06:43]} 34. h4 {[%emt 0:01:02]} f6 {[%emt 0:06:03]} 35. Nc4 {[%emt 0:01:13]} Nd3 {[%emt 0:00:53]} 36. b3 {[%emt 0:03:06]} Re8 {[%emt 0:00:10]} 37. Rxa5 {[%emt 0:00:34]} Re1+ {[%emt 0:00:55]} 38. Kh2 {[%emt 0:00:06]} Re2 {[%emt 0:00:37]} 39. h5 {[%emt 0:05:51]} Ne1 {[%emt 0:00:31]} 40. Kg3 {[%emt 0:05:37]} Rxg2+ {[%emt 0:00:25]} 41. Kf4 {[%emt 0:00:06]} Nd3+ {[%emt 0:00:10]} 42. Ke4 {[%emt 0:00:49]} Nc1 {[%emt 0:00:54]} 43. Rb5 {[%emt 0:00:11]} Rg3 {[%emt 0:00:29]} 44. b4 {[%emt 0:03:10]} Na2 {[%emt 0:00:31]} 45. Rb8+ {[%emt 0:00:40]} Kh7 {[%emt 0:00:28]} 46. Kd4 {[%emt 0:02:21]} Rg4+ {[%emt 0:00:16]} 47. Kd3 {[%emt 0:00:37]} Nc1+ {[%emt 0:00:33]} 48. Kc3 {[%emt 0:00:01]} Ne2+ {[%emt 0:00:43]} 49. Kd2 {[%emt 0:00:07]} Nd4 {[%emt 0:00:30]} 50. Kd3 {[%emt 0:00:39]} Nc6 {[%emt 0:00:31]} 51. Rb6 {[%emt 0:00:05]} Rg3+ {[%emt 0:00:29]} 52. Kd2 {[%emt 0:00:43]} Nd4 {[%emt 0:00:29]} 53. a5 {[%emt 0:00:06]} Nb3+ {[%emt 0:00:13]} 54. Kc2 {[%emt 0:00:30]} Nd4+ {[%emt 0:00:06]} 55. Kb2 {[%emt 0:00:17]} Rb3+ {[%emt 0:01:05]} 56. Ka2 {[%emt 0:00:09]} Rc3 {[%emt 0:00:37]} 57. a6 {[%emt 0:01:56]} Rc2+ {[%emt 0:00:25]} 58. Kb1 {[%emt 0:00:36]} 1-0

[Event "26th Abu Dhabi Master 2019"]
[Site "Abu Dhabi"]
[Date "2019.08.04"]
[Round "4.16"]
[White "Karthikeyan, Murali"]
[Black "Tahbaz, Arash"]
[Result "1-0"]
[ECO "B72"]
[WhiteElo "2613"]
[BlackElo "2461"]
[Annotator "ChessBase"]
[PlyCount "107"]
[EventDate "2019.08.02"]
[EventType "swiss"]
[EventCountry "UAE"]
[SourceTitle "playchess.com"]
[Source "ChessBase"]
[SourceQuality "1"]
[TimeControl "5400+30"]

1. e4 c5 2. Nf3 d6 3. d4 cxd4 4. Nxd4 Nf6 5. Nc3 g6 6. Be3 Bg7 7. Be2 O-O 8. Qd2 Nc6 9. O-O-O Nxd4 10. Bxd4 Be6 11. Kb1 Qa5 12. a3 Rfc8 13. h4 h5 14. Qg5 b5 15. Qxb5 Qc7 16. Qa4 Rab8 17. Bb5 Qb7 18. Qxa7 Qxa7 19. Bxa7 Rb7 20. Bd4 Rxc3 21. Bxc3 Rxb5 22. f3 Nd7 23. Bxg7 Kxg7 24. Rd4 f5 25. Re1 Kf6 26. exf5 gxf5 27. Rb4 Rd5 28. Kc1 Rc5 29. a4 Bd5 30. b3 e5 31. Kb2 Bc6 32. Ra1 Ra5 33. Rc4 Ra6 34. b4 Bxa4 35. Rc7 d5 36. b5 Rb6 37. Rxa4 Rxb5+ 38. Kc1 Nb8 39. Raa7 Ke6 40. Rh7 e4 41. fxe4 dxe4 42. Rxh5 Rd5 43. Rh8 Nd7 44. Re8+ Kf6 45. Ra6+ Kf7 46. Rae6 Nf6 47. R8e7+ Kf8 48. Ra7 Nd7 49. g4 fxg4 50. Rxe4 Nf6 51. Rf4 Rd6 52. h5 Kg8 53. h6 Kh8 54. Rg7 1-0

[Event "26th Abu Dhabi Master 2019"]
[Site "Abu Dhabi"]
[Date "2019.08.04"]
[Round "4.17"]
[White "Petrov, Nikita"]
[Black "Lee, Jun Hyeok"]
[Result "1-0"]
[ECO "B06"]
[WhiteElo "2600"]
[BlackElo "2383"]
[Annotator "ChessBase"]
[PlyCount "69"]
[EventDate "2019.08.02"]
[EventType "swiss"]
[EventCountry "UAE"]
[SourceTitle "playchess.com"]
[Source "ChessBase"]
[SourceQuality "1"]
[TimeControl "5400+30"]

1. e4 {[%emt 0:00:00]} g6 {[%emt 0:03:54]} 2. d4 {[%emt 0:00:00]} Bg7 {[%emt 0:00:07]} 3. Nc3 {[%emt 0:00:47]} d6 {[%emt 0:00:18]} 4. Be3 {[%emt 0:01:49]} a6 {[%emt 0:00:43]} 5. h4 {[%emt 0:02:31]} Nf6 {[%emt 0:03:50]} 6. h5 {[%emt 0:00:45]} Nxh5 {[%emt 0:01:08]} 7. Rxh5 {[%emt 0:00:08]} gxh5 {[%emt 0:00:04]} 8. Qxh5 {[%emt 0:00:09]} e6 {[%emt 0:07:23]} 9. e5 {[%emt 0:09:44]} d5 {[%emt 0:06:03]} 10. f4 {[%emt 0:06:02]} Nc6 {[%emt 0:11:25]} 11. Nf3 {[%emt 0:04:05]} Kf8 {[%emt 0:03:30]} 12. g4 {[%emt 0:07:07]} f6 {[%emt 0:01:34]} 13. O-O-O {[%emt 0:04:02]} Bd7 {[%emt 0:03:45]} 14. f5 {[%emt 0:13:59]} h6 {[%emt 0:00:16]} 15. Bd3 {[%emt 0:05:15]} Kg8 {[%emt 0:02:13]} 16. Rg1 {[%emt 0:05:49]} Qe7 {[%emt 0:02:36]} 17. Qh2 {[%emt 0:05:59]} Re8 {[%emt 0:06:10]} 18. Bf4 {[%emt 0:03:19]} Qf7 {[%emt 0:01:40]} 19. Qf2 {[%emt 0:13:04]} Kf8 {[%emt 0:00:30]} 20. Nh4 {[%emt 0:00:30]} Ke7 {[%emt 0:00:30]} 21. fxe6 {[%emt 0:00:30]} Bxe6 {[%emt 0:00:30]} 22. Bg6 {[%emt 0:00:30]} Qg8 23. Nf5+ Kd7 {[%emt 0:08:42]} 24. Bxe8+ {[%emt 0:00:57]} Kxe8 {[%emt 0:00:05]} 25. exf6 {[%emt 0:01:50]} Bxf6 {[%emt 0:00:07]} 26. Bxc7 {[%emt 0:00:35]} Kd7 {[%emt 0:02:22]} 27. Bh2 {[%emt 0:00:49]} Rh7 {[%emt 0:10:49]} 28. Na4 {[%emt 0:01:09]} Qg5+ {[%emt 0:03:30]} 29. Bf4 {[%emt 0:01:14]} Bxf5 {[%emt 0:00:05]} 30. Bxg5 {[%emt 0:01:10]} Bxg5+ {[%emt 0:00:06]} 31. Kb1 {[%emt 0:00:07]} Bg6 {[%emt 0:00:04]} 32. Nc5+ {[%emt 0:02:10]} Kc7 {[%emt 0:00:47]} 33. Ne6+ {[%emt 0:00:51]} Kb6 {[%emt 0:00:06]} 34. Nxg5 {[%emt 0:03:00]} hxg5 {[%emt 0:00:02]} 35. Qd2 {[%emt 0:00:12]} 1-0

[Event "26th Abu Dhabi Master 2019"]
[Site "Abu Dhabi"]
[Date "2019.08.04"]
[Round "4.18"]
[White "Vaibhav, Suri"]
[Black "Krishna C R G"]
[Result "1-0"]
[ECO "C18"]
[WhiteElo "2591"]
[BlackElo "2463"]
[Annotator "ChessBase"]
[PlyCount "87"]
[EventDate "2019.08.02"]
[EventType "swiss"]
[EventCountry "UAE"]
[SourceTitle "playchess.com"]
[Source "ChessBase"]
[SourceQuality "1"]
[TimeControl "5400+30"]

1. e4 {[%emt 0:00:00]} e6 {[%emt 0:00:00]} 2. d4 {[%emt 0:00:08]} d5 {[%emt 0:00:00]} 3. Nc3 {[%emt 0:00:03]} Bb4 {[%emt 0:00:00]} 4. e5 {[%emt 0:00:06]} c5 {[%emt 0:00:00]} 5. a3 {[%emt 0:00:06]} Bxc3+ {[%emt 0:00:05]} 6. bxc3 {[%emt 0:00:04]} Qa5 {[%emt 0:00:07]} 7. Bd2 {[%emt 0:00:06]} Qa4 {[%emt 0:00:05]} 8. Qg4 {[%emt 0:00:29]} Kf8 {[%emt 0:00:06]} 9. h4 {[%emt 0:00:06]} Nc6 {[%emt 0:15:17]} 10. h5 {[%emt 0:00:09]} h6 {[%emt 0:03:47]} 11. Qf4 {[%emt 0:00:22]} Qxc2 {[%emt 0:07:06]} 12. dxc5 {[%emt 0:09:35]} Qe4+ {[%emt 0:07:51]} 13. Qxe4 {[%emt 0:11:47]} dxe4 {[%emt 0:00:02]} 14. Bf4 {[%emt 0:17:05]} Nge7 {[%emt 0:03:15]} 15. Ne2 {[%emt 0:09:31]} b6 {[%emt 0:20:09]} 16. c4 {[%emt 0:04:45]} Na5 {[%emt 0:10:39]} 17. Nc3 {[%emt 0:02:21]} Ba6 {[%emt 0:18:39]} 18. Nxe4 {[%emt 0:00:30]} Bxc4 {[%emt 0:00:30]} 19. Bxc4 {[%emt 0:00:30]} Nxc4 20. Rc1 b5 {[%emt 0:01:00]} 21. a4 {[%emt 0:25:35]} a6 {[%emt 0:04:14]} 22. axb5 {[%emt 0:02:54]} axb5 {[%emt 0:00:02]} 23. Nd6 {[%emt 0:00:11]} Nd5 {[%emt 0:00:24]} 24. Bg3 {[%emt 0:00:29]} Ke7 {[%emt 0:07:52]} 25. O-O {[%emt 0:02:03]} Ra4 {[%emt 0:00:45]} 26. c6 {[%emt 0:06:30]} Nc7 {[%emt 0:00:34]} 27. Nxc4 {[%emt 0:06:46]} bxc4 {[%emt 0:00:28]} 28. Rfd1 {[%emt 0:00:06]} Nd5 {[%emt 0:00:10]} 29. Rd4 {[%emt 0:01:41]} Rb8 {[%emt 0:00:51]} 30. Rdxc4 Rb1 {[%emt 0:00:26]} 31. Rxb1 {[%emt 0:01:00]} Rxc4 {[%emt 0:00:04]} 32. Rb7+ {[%emt 0:00:01]} Ke8 {[%emt 0:00:09]} 33. Rb8+ {[%emt 0:00:07]} Ke7 {[%emt 0:00:05]} 34. Rg8 {[%emt 0:00:07]} Rxc6 {[%emt 0:01:46]} 35. Bh4+ {[%emt 0:00:10]} Kd7 {[%emt 0:00:31]} 36. Rxg7 {[%emt 0:00:01]} Rc4 {[%emt 0:00:17]} 37. g3 {[%emt 0:02:00]} Re4 {[%emt 0:00:11]} 38. Bf6 {[%emt 0:00:39]} Nxf6 {[%emt 0:00:34]} 39. exf6 {[%emt 0:00:54]} e5 {[%emt 0:00:06]} 40. Rxf7+ {[%emt 0:00:13]} Ke6 {[%emt 0:00:01]} 41. Rf8 {[%emt 0:00:37]} Re1+ {[%emt 0:01:12]} 42. Kg2 {[%emt 0:00:01]} e4 {[%emt 0:00:05]} 43. g4 {[%emt 0:00:37]} Re2 {[%emt 0:01:15]} 44. Kg3 {[%emt 0:00:13]} 1-0

[Event "26th Abu Dhabi Master 2019"]
[Site "Abu Dhabi"]
[Date "2019.08.04"]
[Round "4.19"]
[White "Assaubayeva, Bibisara"]
[Black "Idani, Pouya"]
[Result "1/2-1/2"]
[ECO "A04"]
[WhiteElo "2375"]
[BlackElo "2595"]
[Annotator "ChessBase"]
[PlyCount "77"]
[EventDate "2019.08.02"]
[EventType "swiss"]
[EventCountry "UAE"]
[SourceTitle "playchess.com"]
[Source "ChessBase"]
[SourceQuality "1"]
[TimeControl "5400+30"]

1. Nf3 {[%emt 0:02:47]} c5 {[%emt 0:00:00]} 2. c4 {[%emt 0:00:52]} Nc6 {[%emt 0:00:08]} 3. d4 {[%emt 0:00:20]} cxd4 {[%emt 0:00:07]} 4. Nxd4 {[%emt 0:00:04]} g6 {[%emt 0:00:53]} 5. Nc2 {[%emt 0:04:08]} Bg7 {[%emt 0:01:12]} 6. e4 {[%emt 0:03:53]} d6 {[%emt 0:00:11]} 7. Be2 {[%emt 0:01:03]} Be6 {[%emt 0:02:51]} 8. O-O {[%emt 0:02:50]} Rc8 {[%emt 0:00:05]} 9. Ne3 {[%emt 0:05:40]} Nf6 {[%emt 0:02:58]} 10. f3 {[%emt 0:04:00]} O-O {[%emt 0:00:19]} 11. Nc3 {[%emt 0:03:14]} Nd7 {[%emt 0:12:21]} 12. Bd2 {[%emt 0:06:31]} Nd4 {[%emt 0:01:43]} 13. Kh1 {[%emt 0:04:47]} a6 {[%emt 0:02:46]} 14. a4 {[%emt 0:07:26]} Nc5 {[%emt 0:03:07]} 15. Ra3 {[%emt 0:01:47]} f5 {[%emt 0:14:12]} 16. b4 {[%emt 0:01:58]} Nd7 {[%emt 0:00:06]} 17. Ned5 {[%emt 0:05:19]} Bxd5 {[%emt 0:01:54]} 18. Nxd5 {[%emt 0:00:46]} e6 {[%emt 0:00:56]} 19. Nf4 {[%emt 0:03:02]} fxe4 {[%emt 0:04:05]} 20. fxe4 {[%emt 0:00:53]} Ne5 {[%emt 0:10:03]} 21. Bc3 {[%emt 0:04:43]} Nxe2 {[%emt 0:00:23]} 22. Qxe2 {[%emt 0:00:09]} Qe7 {[%emt 0:01:48]} 23. Rb3 {[%emt 0:16:10]} Nxc4 {[%emt 0:00:30]} 24. Bxg7 {[%emt 0:00:30]} Kxg7 {[%emt 0:00:30]} 25. Rbf3 {[%emt 0:00:30]} Ne5 {[%emt 0:00:30]} 26. R3f2 Rf7 27. Qa2 {[%emt 0:01:00]} Kg8 {[%emt 0:05:51]} 28. Kg1 {[%emt 0:01:16]} Re8 {[%emt 0:02:02]} 29. h3 {[%emt 0:01:18]} b5 {[%emt 0:04:24]} 30. axb5 {[%emt 0:00:35]} axb5 {[%emt 0:00:05]} 31. Kh1 {[%emt 0:05:26]} Qd7 32. Qb3 {[%emt 0:05:11]} Qe7 {[%emt 0:04:18]} 33. Kg1 {[%emt 0:00:30]} g5 {[%emt 0:07:30]} 34. Nd3 {[%emt 0:02:06]} Rxf2 {[%emt 0:00:11]} 35. Rxf2 {[%emt 0:00:20]} Qg7 {[%emt 0:01:55]} 36. Nxe5 {[%emt 0:00:53]} Qxe5 {[%emt 0:00:06]} 37. Qf3 {[%emt 0:00:05]} Qg7 {[%emt 0:01:43]} 38. Qd3 {[%emt 0:00:36]} Qe5 {[%emt 0:00:30]} 39. Qf3 {[%emt 0:00:06]} 1/2-1/2

[Event "26th Abu Dhabi Master 2019"]
[Site "Abu Dhabi"]
[Date "2019.08.04"]
[Round "4.20"]
[White "Yuffa, Daniil"]
[Black "Laxman, R.R."]
[Result "1-0"]
[ECO "E15"]
[WhiteElo "2582"]
[BlackElo "2429"]
[Annotator "ChessBase"]
[PlyCount "55"]
[EventDate "2019.08.02"]
[EventType "swiss"]
[EventCountry "UAE"]
[SourceTitle "playchess.com"]
[Source "ChessBase"]
[SourceQuality "1"]
[TimeControl "5400+30"]

1. d4 {[%emt 0:00:00]} Nf6 {[%emt 0:00:00]} 2. c4 {[%emt 0:00:00]} e6 {[%emt 0:00:00]} 3. Nf3 {[%emt 0:00:00]} b6 {[%emt 0:00:49]} 4. g3 {[%emt 0:00:00]} Bb7 {[%emt 0:00:42]} 5. Bg2 {[%emt 0:00:06]} g6 {[%emt 0:00:04]} 6. Nc3 {[%emt 0:11:17]} Ne4 {[%emt 0:00:57]} 7. d5 {[%emt 0:00:15]} Nxc3 {[%emt 0:00:46]} 8. Qd4 {[%emt 0:00:42]} f6 {[%emt 0:00:12]} 9. Qxc3 {[%emt 0:01:06]} exd5 {[%emt 0:02:41]} 10. cxd5 {[%emt 0:07:20]} Bxd5 {[%emt 0:01:12]} 11. Bf4 {[%emt 0:04:50]} Nc6 {[%emt 0:04:35]} 12. O-O-O {[%emt 0:00:28]} Be4 {[%emt 0:10:16]} 13. Bh3 {[%emt 0:15:51]} Nb4 {[%emt 0:01:04]} 14. Qb3 {[%emt 0:02:38]} d5 {[%emt 0:01:39]} 15. a3 {[%emt 0:01:04]} g5 {[%emt 0:02:37]} 16. Bd2 {[%emt 0:05:29]} Nc2 {[%emt 0:02:28]} 17. Bc3 {[%emt 0:11:49]} Bh6 {[%emt 0:09:07]} 18. Qa4+ {[%emt 0:04:19]} Kf7 {[%emt 0:00:12]} 19. Bg4 {[%emt 0:00:17]} b5 {[%emt 0:15:47]} 20. Qxb5 {[%emt 0:01:41]} Rb8 {[%emt 0:00:04]} 21. Qa4 {[%emt 0:00:43]} c5 22. Bh5+ Ke6 23. e3 {[%emt 0:20:50]} Na1 {[%emt 0:10:55]} 24. b4 {[%emt 0:01:45]} d4 {[%emt 0:02:25]} 25. Bxd4 {[%emt 0:05:17]} Bxf3 {[%emt 0:08:18]} 26. Bxa1 {[%emt 0:00:30]} Bxd1 {[%emt 0:00:30]} 27. Rxd1 {[%emt 0:00:30]} Qc7 {[%emt 0:00:30]} 28. Qa6+ {[%emt 0:00:30] Qd8} 1-0